Workbook

Sheet Chart
A21: Starting Deer: | B21: 300 | C21: Year 1st Wolf Arrives: | D21: 40
A22: Starting Resources: | B22: 700 | C22: Recalculate: | D22: =NOW() -> 2019-04-17T16:22:48.360

Sheet Data
B1: Population Count | E1: Deer seeking: | H1: Types of Resources | K1: Deer | M1: Wolves eating | P1: Wolves | R1: Deer | S1: New | T1: Remaining Resources | W1: Types | X1: Special Events Switches | Z1: New | AA1: Check | AB1: Check
A2: Year No | B2: Deer | C2: Resources | D2: Wolves | E2: Water | F2: Shelter | G2: Food | H2: Water | I2: Shelter | J2: Food | K2: Survive | L2: Die | M2: Dead | N2: Hunted | O2: Total | P2: Dead | Q2: Live | R2: Live | S2: Resources | T2: Water | U2: Shelter | V2: Food | W2: of Habitat | X2: Drought | Y2: Hurricane | Z2: Wolves | AA2: Starting | AB2: Ending
A3: 0 | B3: =Chart!B21 -> 300 | C3: =Chart!B22 -> 700 | D3: =Z3 -> 0 | E3: =INT(RANDBETWEEN(B3*0.25,B3*0.75)) -> 85 | F3: =INT(RANDBETWEEN((B3-E3)*0.1,(B3-E3)*0.9)) -> 49 | G3: =B3-E3-F3 -> 166 | H3: =INT(RANDBETWEEN(C3*0.25,C3*0.75))*(1-X3) -> 181 | I3: =INT(RANDBETWEEN((C3-H3)*0.1,(C3-H3)*0.9))*(1-Y3) -> 428 | J3: =C3-H3-I3 -> 91 | K3: =MIN(E3,H3)+MIN(F3,I3)+MIN(G3,J3) -> 225 | L3: =B3-K3 -> 75 | M3: =MIN(D3,L3) -> 0 | N3: =RANDBETWEEN(MIN(D3-M3,K3)*0.5,MIN(D3-M3,K3)*0.75) -> 0 | O3: =MIN(D3,N3+L3) -> 0 | P3: =MAX(D3-O3,0) -> 0 | Q3: =O3+D3-P3 -> 0 | R3: =B3+K3-L3-N3 -> 450 | S3: =L3-M3+P3 -> 75 | T3: =MAX(H3-E3,0) -> 96 | U3: 379 | V3: 0 | W3: 3 | X3: 0 | Y3: 0 | Z3: =IF(Chart!$D$21=A3,1,0) -> 0 | AA3: =B3+C3+D3 -> 1000 | AB3: =SUM(Q3:V3) -> 1000
A4: =A3+1 -> 1 | B4: =R3 -> 450 | C4: =SUM(S3:V3)-Z4 -> 550 | D4: =Q3+Z4 -> 0 | E4: 272 | F4: 152 | G4: 26 | H4: 149 | I4: 93 | J4: 308 | K4: 268 | L4: 182 | M4: 0 | N4: 0 | O4: 0 | P4: 0 | Q4: 0 | R4: 536 | S4: 182 | T4: =MAX(H4-E4,0) -> 0 | U4: 0 | V4: 282 | W4: 3 | X4: 0 | Y4: 0 | Z4: =IF(Chart!$D$21=A4,1,0) -> 0 | AA4: 1000 | AB4: 1000
A5: =A4+1 -> 2 | B5: 536 | C5: 464 | D5: 0 | E5: 216 | F5: 283 | G5: 37 | H5: 314 | I5: 24 | J5: 126 | K5: 277 | L5: 259 | M5: 0 | N5: 0 | O5: 0 | P5: 0 | Q5: 0 | R5: 554 | S5: 259 | T5: =MAX(H5-E5,0) -> 98 | U5: 0 | V5: 89 | W5: 3 | X5: 0 | Y5: 0 | Z5: =IF(Chart!$D$21=A5,1,0) -> 0 | AA5: 1000 | AB5: 1000
A6: 3 | B6: 554 | C6: 446 | D6: 0 | E6: 338 | F6: 131 | G6: 85 | H6: 294 | I6: 111 | J6: 41 | K6: 446 | L6: 108 | M6: 0 | N6: 0 | O6: 0 | P6: 0 | Q6: 0 | R6: 892 | S6: 108 | T6: =MAX(H6-E6,0) -> 0 | U6: 0 | V6: 0 | W6: 3 | X6: 0 | Y6: 0 | Z6: =IF(Chart!$D$21=A6,1,0) -> 0 | AA6: 1000 | AB6: 1000
A7: 4 | B7: 892 | C7: 108 | D7: 0 | E7: 357 | F7: 365 | G7: 170 | H7: 63 | I7: 40 | J7: 5 | K7: 108 | L7: 784 | M7: 0 | N7: 0 | O7: 0 | P7: 0 | Q7: 0 | R7: 216 | S7: 784 | T7: =MAX(H7-E7,0) -> 0 | U7: 0 | V7: 0 | W7: 3 | X7: 0 | Y7: 0 | Z7: =IF(Chart!$D$21=A7,1,0) -> 0 | AA7: 1000 | AB7: 1000
A8: 5 | B8: 216 | C8: 784 | D8: 0 | E8: 90 | F8: 17 | G8: 109 | H8: 332 | I8: 231 | J8: 221 | K8: 216 | L8: 0 | M8: 0 | N8: 0 | O8: 0 | P8: 0 | Q8: 0 | R8: 432 | S8: 0 | T8: =MAX(H8-E8,0) -> 242 | U8: 214 | V8: 112 | W8: 3 | X8: 0 | Y8: 0 | Z8: =IF(Chart!$D$21=A8,1,0) -> 0 | AA8: 1000 | AB8: 1000
A9: 6 | B9: 432 | C9: 568 | D9: 0 | E9: 158 | F9: 32 | G9: 242 | H9: 157 | I9: 223 | J9: 188 | K9: 377 | L9: 55 | M9: 0 | N9: 0 | O9: 0 | P9: 0 | Q9: 0 | R9: 754 | S9: 55 | T9: =MAX(H9-E9,0) -> 0 | U9: 191 | V9: 0 | W9: 3 | X9: 0 | Y9: 0 | Z9: =IF(Chart!$D$21=A9,1,0) -> 0 | AA9: 1000 | AB9: 1000
A10: 7 | B10: 754 | C10: 246 | D10: 0 | E10: 374 | F10: 217 | G10: 163 | H10: 100 | I10: 126 | J10: 20 | K10: 246 | L10: 508 | M10: 0 | N10: 0 | O10: 0 | P10: 0 | Q10: 0 | R10: 492 | S10: 508 | T10: =MAX(H10-E10,0) -> 0 | U10: 0 | V10: 0 | W10: 3 | X10: 0 | Y10: 0 | Z10: =IF(Chart!$D$21=A10,1,0) -> 0 | AA10: 1000 | AB10: 1000
A11: 8 | B11: 492 | C11: 508 | D11: 0 | E11: 175 | F11: 261 | G11: 56 | H11: 311 | I11: 135 | J11: 62 | K11: 366 | L11: 126 | M11: 0 | N11: 0 | O11: 0 | P11: 0 | Q11: 0 | R11: 732 | S11: 126 | T11: =MAX(H11-E11,0) -> 136 | U11: 0 | V11: 6 | W11: 3 | X11: 0 | Y11: 0 | Z11: =IF(Chart!$D$21=A11,1,0) -> 0 | AA11: 1000 | AB11: 1000
A12: 9 | B12: 732 | C12: 268 | D12: 0 | E12: 198 | F12: 159 | G12: 375 | H12: 69 | I12: 165 | J12: 34 | K12: 262 | L12: 470 | M12: 0 | N12: 0 | O12: 0 | P12: 0 | Q12: 0 | R12: 524 | S12: 470 | T12: =MAX(H12-E12,0) -> 0 | U12: 6 | V12: 0 | W12: 3 | X12: 0 | Y12: 0 | Z12: =IF(Chart!$D$21=A12,1,0) -> 0 | AA12: 1000 | AB12: 1000
A13: 10 | B13: 524 | C13: 476 | D13: 0 | E13: 363 | F13: 44 | G13: 117 | H13: 246 | I13: 117 | J13: 113 | K13: 403 | L13: 121 | M13: 0 | N13: 0 | O13: 0 | P13: 0 | Q13: 0 | R13: 806 | S13: 121 | T13: =MAX(H13-E13,0) -> 0 | U13: 73 | V13: 0 | W13: 3 | X13: 0 | Y13: 0 | Z13: =IF(Chart!$D$21=A13,1,0) -> 0 | AA13: 1000 | AB13: 1000
A14: 11 | B14: 806 | C14: 194 | D14: 0 | E14: 444 | F14: 250 | G14: 112 | H14: 135 | I14: 12 | J14: 47 | K14: 194 | L14: 612 | M14: 0 | N14: 0 | O14: 0 | P14: 0 | Q14: 0 | R14: 388 | S14: 612 | T14: =MAX(H14-E14,0) -> 0 | U14: 0 | V14: 0 | W14: 3 | X14: 0 | Y14: 0 | Z14: =IF(Chart!$D$21=A14,1,0) -> 0 | AA14: 1000 | AB14: 1000
A15: 12 | B15: 388 | C15: 612 | D15: 0 | E15: 185 | F15: 92 | G15: 111 | H15: 166 | I15: 166 | J15: 280 | K15: 369 | L15: 19 | M15: 0 | N15: 0 | O15: 0 | P15: 0 | Q15: 0 | R15: 738 | S15: 19 | T15: =MAX(H15-E15,0) -> 0 | U15: 74 | V15: 169 | W15: 3 | X15: 0 | Y15: 0 | Z15: =IF(Chart!$D$21=A15,1,0) -> 0 | AA15: 1000 | AB15: 1000
A16: 13 | B16: 738 | C16: 262 | D16: 0 | E16: 240 | F16: 267 | G16: 231 | H16: 181 | I16: 59 | J16: 22 | K16: 262 | L16: 476 | M16: 0 | N16: 0 | O16: 0 | P16: 0 | Q16: 0 | R16: 524 | S16: 476 | T16: =MAX(H16-E16,0) -> 0 | U16: 0 | V16: 0 | W16: 3 | X16: 0 | Y16: 0 | Z16: =IF(Chart!$D$21=A16,1,0) -> 0 | AA16: 1000 | AB16: 1000
A17: 14 | B17: 524 | C17: 476 | D17: 0 | E17: 237 | F17: 88 | G17: 199 | H17: 339 | I17: 56 | J17: 81 | K17: 374 | L17: 150 | M17: 0 | N17: 0 | O17: 0 | P17: 0 | Q17: 0 | R17: 748 | S17: 150 | T17: =MAX(H17-E17,0) -> 102 | U17: 0 | V17: 0 | W17: 3 | X17: 0 | Y17: 0 | Z17: =IF(Chart!$D$21=A17,1,0) -> 0 | AA17: 1000 | AB17: 1000
A18: 15 | B18: 748 | C18: 252 | D18: 0 | E18: 223 | F18: 417 | G18: 108 | H18: 120 | I18: 101 | J18: 31 | K18: 252 | L18: 496 | M18: 0 | N18: 0 | O18: 0 | P18: 0 | Q18: 0 | R18: 504 | S18: 496 | T18: =MAX(H18-E18,0) -> 0 | U18: 0 | V18: 0 | W18: 3 | X18: 0 | Y18: 0 | Z18: =IF(Chart!$D$21=A18,1,0) -> 0 | AA18: 1000 | AB18: 1000
A19: 16 | B19: 504 | C19: 496 | D19: 0 | E19: 207 | F19: 48 | G19: 249 | H19: 189 | I19: 109 | J19: 198 | K19: 435 | L19: 69 | M19: 0 | N19: 0 | O19: 0 | P19: 0 | Q19: 0 | R19: 870 | S19: 69 | T19: =MAX(H19-E19,0) -> 0 | U19: 61 | V19: 0 | W19: 3 | X19: 0 | Y19: 0 | Z19: =IF(Chart!$D$21=A19,1,0) -> 0 | AA19: 1000 | AB19: 1000
A20: 17 | B20: 870 | C20: 130 | D20: 0 | E20: 228 | F20: 173 | G20: 469 | H20: 89 | I20: 36 | J20: 5 | K20: 130 | L20: 740 | M20: 0 | N20: 0 | O20: 0 | P20: 0 | Q20: 0 | R20: 260 | S20: 740 | T20: =MAX(H20-E20,0) -> 0 | U20: 0 | V20: 0 | W20: 3 | X20: 0 | Y20: 0 | Z20: =IF(Chart!$D$21=A20,1,0) -> 0 | AA20: 1000 | AB20: 1000
A21: 18 | B21: 260 | C21: 740 | D21: 0 | E21: 82 | F21: 115 | G21: 63 | H21: 320 | I21: 275 | J21: 145 | K21: 260 | L21: 0 | M21: 0 | N21: 0 | O21: 0 | P21: 0 | Q21: 0 | R21: 520 | S21: 0 | T21: =MAX(H21-E21,0) -> 238 | U21: 160 | V21: 82 | W21: 3 | X21: 0 | Y21: 0 | Z21: =IF(Chart!$D$21=A21,1,0) -> 0 | AA21: 1000 | AB21: 1000
A22: 19 | B22: 520 | C22: 480 | D22: 0 | E22: 255 | F22: 178 | G22: 87 | H22: 359 | I22: 92 | J22: 29 | K22: 376 | L22: 144 | M22: 0 | N22: 0 | O22: 0 | P22: 0 | Q22: 0 | R22: 752 | S22: 144 | T22: =MAX(H22-E22,0) -> 104 | U22: 0 | V22: 0 | W22: 3 | X22: 0 | Y22: 0 | Z22: =IF(Chart!$D$21=A22,1,0) -> 0 | AA22: 1000 | AB22: 1000
A23: 20 | B23: 752 | C23: 248 | D23: 0 | E23: 322 | F23: 291 | G23: 139 | H23: 139 | I23: 73 | J23: 36 | K23: 248 | L23: 504 | M23: 0 | N23: 0 | O23: 0 | P23: 0 | Q23: 0 | R23: 496 | S23: 504 | T23: =MAX(H23-E23,0) -> 0 | U23: 0 | V23: 0 | W23: 3 | X23: 0 | Y23: 0 | Z23: =IF(Chart!$D$21=A23,1,0) -> 0 | AA23: 1000 | AB23: 1000
A24: 21 | B24: 496 | C24: 504 | D24: 0 | E24: 167 | F24: 140 | G24: 189 | H24: 191 | I24: 36 | J24: 277 | K24: 392 | L24: 104 | M24: 0 | N24: 0 | O24: 0 | P24: 0 | Q24: 0 | R24: 784 | S24: 104 | T24: =MAX(H24-E24,0) -> 24 | U24: 0 | V24: 88 | W24: 3 | X24: 0 | Y24: 0 | Z24: =IF(Chart!$D$21=A24,1,0) -> 0 | AA24: 1000 | AB24: 1000
A25: 22 | B25: 784 | C25: 216 | D25: 0 | E25: 523 | F25: 225 | G25: 36 | H25: 152 | I25: 24 | J25: 40 | K25: 212 | L25: 572 | M25: 0 | N25: 0 | O25: 0 | P25: 0 | Q25: 0 | R25: 424 | S25: 572 | T25: =MAX(H25-E25,0) -> 0 | U25: 0 | V25: 4 | W25: 3 | X25: 0 | Y25: 0 | Z25: =IF(Chart!$D$21=A25,1,0) -> 0 | AA25: 1000 | AB25: 1000
A26: 23 | B26: 424 | C26: 576 | D26: 0 | E26: 292 | F26: 95 | G26: 37 | H26: 302 | I26: 244 | J26: 30 | K26: 417 | L26: 7 | M26: 0 | N26: 0 | O26: 0 | P26: 0 | Q26: 0 | R26: 834 | S26: 7 | T26: =MAX(H26-E26,0) -> 10 | U26: 149 | V26: 0 | W26: 3 | X26: 0 | Y26: 0 | Z26: =IF(Chart!$D$21=A26,1,0) -> 0 | AA26: 1000 | AB26: 1000
A27: 24 | B27: 834 | C27: 166 | D27: 0 | E27: 530 | F27: 74 | G27: 230 | H27: 80 | I27: 19 | J27: 67 | K27: 166 | L27: 668 | M27: 0 | N27: 0 | O27: 0 | P27: 0 | Q27: 0 | R27: 332 | S27: 668 | T27: =MAX(H27-E27,0) -> 0 | U27: 0 | V27: 0 | W27: 3 | X27: 0 | Y27: 0 | Z27: =IF(Chart!$D$21=A27,1,0) -> 0 | AA27: 1000 | AB27: 1000
A28: 25 | B28: 332 | C28: 668 | D28: 0 | E28: 112 | F28: 44 | G28: 176 | H28: 263 | I28: 272 | J28: 133 | K28: 289 | L28: 43 | M28: 0 | N28: 0 | O28: 0 | P28: 0 | Q28: 0 | R28: 578 | S28: 43 | T28: =MAX(H28-E28,0) -> 151 | U28: 228 | V28: 0 | W28: 3 | X28: 0 | Y28: 0 | Z28: =IF(Chart!$D$21=A28,1,0) -> 0 | AA28: 1000 | AB28: 1000
A29: 26 | B29: 578 | C29: 422 | D29: 0 | E29: 349 | F29: 61 | G29: 168 | H29: 190 | I29: 65 | J29: 167 | K29: 418 | L29: 160 | M29: 0 | N29: 0 | O29: 0 | P29: 0 | Q29: 0 | R29: 836 | S29: 160 | T29: =MAX(H29-E29,0) -> 0 | U29: 4 | V29: 0 | W29: 3 | X29: 0 | Y29: 0 | Z29: =IF(Chart!$D$21=A29,1,0) -> 0 | AA29: 1000 | AB29: 1000
A30: 27 | B30: 836 | C30: 164 | D30: 0 | E30: 543 | F30: 113 | G30: 180 | H30: 102 | I30: 31 | J30: 31 | K30: 164 | L30: 672 | M30: 0 | N30: 0 | O30: 0 | P30: 0 | Q30: 0 | R30: 328 | S30: 672 | T30: =MAX(H30-E30,0) -> 0 | U30: 0 | V30: 0 | W30: 3 | X30: 0 | Y30: 0 | Z30: =IF(Chart!$D$21=A30,1,0) -> 0 | AA30: 1000 | AB30: 1000
A31: 28 | B31: 328 | C31: 672 | D31: 0 | E31: 173 | F31: 101 | G31: 54 | H31: 180 | I31: 422 | J31: 70 | K31: 328 | L31: 0 | M31: 0 | N31: 0 | O31: 0 | P31: 0 | Q31: 0 | R31: 656 | S31: 0 | T31: =MAX(H31-E31,0) -> 7 | U31: 321 | V31: 16 | W31: 3 | X31: 0 | Y31: 0 | Z31: =IF(Chart!$D$21=A31,1,0) -> 0 | AA31: 1000 | AB31: 1000
A32: 29 | B32: 656 | C32: 344 | D32: 0 | E32: 232 | F32: 151 | G32: 273 | H32: 187 | I32: 30 | J32: 127 | K32: 344 | L32: 312 | M32: 0 | N32: 0 | O32: 0 | P32: 0 | Q32: 0 | R32: 688 | S32: 312 | T32: =MAX(H32-E32,0) -> 0 | U32: 0 | V32: 0 | W32: 3 | X32: 0 | Y32: 0 | Z32: =IF(Chart!$D$21=A32,1,0) -> 0 | AA32: 1000 | AB32: 1000
A33: 30 | B33: 688 | C33: 312 | D33: 0 | E33: 466 | F33: 190 | G33: 32 | H33: 202 | I33: 79 | J33: 31 | K33: 312 | L33: 376 | M33: 0 | N33: 0 | O33: 0 | P33: 0 | Q33: 0 | R33: 624 | S33: 376 | T33: =MAX(H33-E33,0) -> 0 | U33: 0 | V33: 0 | W33: 3 | X33: 0 | Y33: 0 | Z33: =IF(Chart!$D$21=A33,1,0) -> 0 | AA33: 1000 | AB33: 1000
A34: 31 | B34: 624 | C34: 376 | D34: 0 | E34: 364 | F34: 162 | G34: 98 | H34: 116 | I34: 84 | J34: 176 | K34: 298 | L34: 326 | M34: 0 | N34: 0 | O34: 0 | P34: 0 | Q34: 0 | R34: 596 | S34: 326 | T34: =MAX(H34-E34,0) -> 0 | U34: 0 | V34: 78 | W34: 3 | X34: 0 | Y34: 0 | Z34: =IF(Chart!$D$21=A34,1,0) -> 0 | AA34: 1000 | AB34: 1000
A35: 32 | B35: 596 | C35: 404 | D35: 0 | E35: 442 | F35: 128 | G35: 26 | H35: 186 | I35: 142 | J35: 76 | K35: 340 | L35: 256 | M35: 0 | N35: 0 | O35: 0 | P35: 0 | Q35: 0 | R35: 680 | S35: 256 | T35: =MAX(H35-E35,0) -> 0 | U35: 14 | V35: 50 | W35: 3 | X35: 0 | Y35: 0 | Z35: =IF(Chart!$D$21=A35,1,0) -> 0 | AA35: 1000 | AB35: 1000
A36: 33 | B36: 680 | C36: 320 | D36: 0 | E36: 367 | F36: 216 | G36: 97 | H36: 85 | I36: 143 | J36: 92 | K36: 320 | L36: 360 | M36: 0 | N36: 0 | O36: 0 | P36: 0 | Q36: 0 | R36: 640 | S36: 360 | T36: =MAX(H36-E36,0) -> 0 | U36: 0 | V36: 0 | W36: 3 | X36: 0 | Y36: 0 | Z36: =IF(Chart!$D$21=A36,1,0) -> 0 | AA36: 1000 | AB36: 1000
A37: 34 | B37: 640 | C37: 360 | D37: 0 | E37: 479 | F37: 134 | G37: 27 | H37: 176 | I37: 75 | J37: 109 | K37: 278 | L37: 362 | M37: 0 | N37: 0 | O37: 0 | P37: 0 | Q37: 0 | R37: 556 | S37: 362 | T37: =MAX(H37-E37,0) -> 0 | U37: 0 | V37: 82 | W37: 3 | X37: 0 | Y37: 0 | Z37: =IF(Chart!$D$21=A37,1,0) -> 0 | AA37: 1000 | AB37: 1000
A38: 35 | B38: 556 | C38: 444 | D38: 0 | E38: 193 | F38: 147 | G38: 216 | H38: 214 | I38: 157 | J38: 73 | K38: 413 | L38: 143 | M38: 0 | N38: 0 | O38: 0 | P38: 0 | Q38: 0 | R38: 826 | S38: 143 | T38: =MAX(H38-E38,0) -> 21 | U38: 10 | V38: 0 | W38: 3 | X38: 0 | Y38: 0 | Z38: =IF(Chart!$D$21=A38,1,0) -> 0 | AA38: 1000 | AB38: 1000
A39: 36 | B39: 826 | C39: 174 | D39: 0 | E39: 567 | F39: 197 | G39: 62 | H39: 129 | I39: 18 | J39: 27 | K39: 174 | L39: 652 | M39: 0 | N39: 0 | O39: 0 | P39: 0 | Q39: 0 | R39: 348 | S39: 652 | T39: =MAX(H39-E39,0) -> 0 | U39: 0 | V39: 0 | W39: 3 | X39: 0 | Y39: 0 | Z39: =IF(Chart!$D$21=A39,1,0) -> 0 | AA39: 1000 | AB39: 1000
A40: 37 | B40: 348 | C40: 652 | D40: 0 | E40: 183 | F40: 141 | G40: 24 | H40: 314 | I40: 215 | J40: 123 | K40: 348 | L40: 0 | M40: 0 | N40: 0 | O40: 0 | P40: 0 | Q40: 0 | R40: 696 | S40: 0 | T40: =MAX(H40-E40,0) -> 131 | U40: 74 | V40: 99 | W40: 3 | X40: 0 | Y40: 0 | Z40: =IF(Chart!$D$21=A40,1,0) -> 0 | AA40: 1000 | AB40: 1000
A41: 38 | B41: 696 | C41: 304 | D41: 0 | E41: 249 | F41: 255 | G41: 192 | H41: 168 | I41: 116 | J41: 20 | K41: 304 | L41: 392 | M41: 0 | N41: 0 | O41: 0 | P41: 0 | Q41: 0 | R41: 608 | S41: 392 | T41: =MAX(H41-E41,0) -> 0 | U41: 0 | V41: 0 | W41: 3 | X41: 0 | Y41: 0 | Z41: =IF(Chart!$D$21=A41,1,0) -> 0 | AA41: 1000 | AB41: 1000
A42: 39 | B42: 608 | C42: 392 | D42: 0 | E42: 294 | F42: 204 | G42: 110 | H42: 164 | I42: 95 | J42: 133 | K42: 369 | L42: 239 | M42: 0 | N42: 0 | O42: 0 | P42: 0 | Q42: 0 | R42: 738 | S42: 239 | T42: =MAX(H42-E42,0) -> 0 | U42: 0 | V42: 23 | W42: 3 | X42: 0 | Y42: 0 | Z42: =IF(Chart!$D$21=A42,1,0) -> 0 | AA42: 1000 | AB42: 1000
A43: 40 | B43: 738 | C43: 261 | D43: 1 | E43: 291 | F43: 367 | G43: 80 | H43: 73 | I43: 124 | J43: 64 | K43: 261 | L43: 477 | M43: 1 | N43: 0 | O43: 1 | P43: 0 | Q43: 2 | R43: 522 | S43: 476 | T43: =MAX(H43-E43,0) -> 0 | U43: 0 | V43: 0 | W43: 3 | X43: 0 | Y43: 0 | Z43: =IF(Chart!$D$21=A43,1,0) -> 1 | AA43: 1000 | AB43: 1000
A44: 41 | B44: 522 | C44: 476 | D44: 2 | E44: 271 | F44: 203 | G44: 48 | H44: 152 | I44: 70 | J44: 254 | K44: 270 | L44: 252 | M44: 2 | N44: 0 | O44: 2 | P44: 0 | Q44: 4 | R44: 540 | S44: 250 | T44: =MAX(H44-E44,0) -> 0 | U44: 0 | V44: 206 | W44: 3 | X44: 0 | Y44: 0 | Z44: =IF(Chart!$D$21=A44,1,0) -> 0 | AA44: 1000 | AB44: 1000
A45: 42 | B45: 540 | C45: 456 | D45: 4 | E45: 336 | F45: 50 | G45: 154 | H45: 329 | I45: 36 | J45: 91 | K45: 456 | L45: 84 | M45: 4 | N45: 0 | O45: 4 | P45: 0 | Q45: 8 | R45: 912 | S45: 80 | T45: =MAX(H45-E45,0) -> 0 | U45: 0 | V45: 0 | W45: 3 | X45: 0 | Y45: 0 | Z45: =IF(Chart!$D$21=A45,1,0) -> 0 | AA45: 1000 | AB45: 1000
A46: 43 | B46: 912 | C46: 80 | D46: 8 | E46: 323 | F46: 410 | G46: 179 | H46: 34 | I46: 12 | J46: 34 | K46: 80 | L46: 832 | M46: 8 | N46: 0 | O46: 8 | P46: 0 | Q46: 16 | R46: 160 | S46: 824 | T46: =MAX(H46-E46,0) -> 0 | U46: 0 | V46: 0 | W46: 3 | X46: 0 | Y46: 0 | Z46: =IF(Chart!$D$21=A46,1,0) -> 0 | AA46: 1000 | AB46: 1000
A47: 44 | B47: 160 | C47: 824 | D47: 16 | E47: 64 | F47: 42 | G47: 54 | H47: 240 | I47: 205 | J47: 379 | K47: 160 | L47: 0 | M47: 0 | N47: 8 | O47: 8 | P47: 8 | Q47: 16 | R47: 312 | S47: 8 | T47: =MAX(H47-E47,0) -> 176 | U47: 163 | V47: 325 | W47: 3 | X47: 0 | Y47: 0 | Z47: =IF(Chart!$D$21=A47,1,0) -> 0 | AA47: 1000 | AB47: 1000
A48: 45 | B48: 312 | C48: 672 | D48: 16 | E48: 99 | F48: 142 | G48: 71 | H48: 306 | I48: 84 | J48: 282 | K48: 254 | L48: 58 | M48: 16 | N48: 0 | O48: 16 | P48: 0 | Q48: 32 | R48: 508 | S48: 42 | T48: =MAX(H48-E48,0) -> 207 | U48: 0 | V48: 211 | W48: 3 | X48: 0 | Y48: 0 | Z48: =IF(Chart!$D$21=A48,1,0) -> 0 | AA48: 1000 | AB48: 1000
A49: 46 | B49: 508 | C49: 460 | D49: 32 | E49: 241 | F49: 185 | G49: 82 | H49: 137 | I49: 227 | J49: 96 | K49: 404 | L49: 104 | M49: 32 | N49: 0 | O49: 32 | P49: 0 | Q49: 64 | R49: 808 | S49: 72 | T49: =MAX(H49-E49,0) -> 0 | U49: 42 | V49: 14 | W49: 3 | X49: 0 | Y49: 0 | Z49: =IF(Chart!$D$21=A49,1,0) -> 0 | AA49: 1000 | AB49: 1000
A50: 47 | B50: 808 | C50: 128 | D50: 64 | E50: 223 | F50: 66 | G50: 519 | H50: 69 | I50: 48 | J50: 11 | K50: 128 | L50: 680 | M50: 64 | N50: 0 | O50: 64 | P50: 0 | Q50: 128 | R50: 256 | S50: 616 | T50: =MAX(H50-E50,0) -> 0 | U50: 0 | V50: 0 | W50: 3 | X50: 0 | Y50: 0 | Z50: =IF(Chart!$D$21=A50,1,0) -> 0 | AA50: 1000 | AB50: 1000
A51: 48 | B51: 256 | C51: 616 | D51: 128 | E51: 133 | F51: 28 | G51: 95 | H51: 292 | I51: 166 | J51: 158 | K51: 256 | L51: 0 | M51: 0 | N51: 72 | O51: 72 | P51: 56 | Q51: 144 | R51: 440 | S51: 56 | T51: =MAX(H51-E51,0) -> 159 | U51: 138 | V51: 63 | W51: 3 | X51: 0 | Y51: 0 | Z51: =IF(Chart!$D$21=A51,1,0) -> 0 | AA51: 1000 | AB51: 1000
A52: 49 | B52: 440 | C52: 416 | D52: 144 | E52: 114 | F52: 245 | G52: 81 | H52: 196 | I52: 159 | J52: 61 | K52: 334 | L52: 106 | M52: 106 | N52: 25 | O52: 131 | P52: 13 | Q52: 262 | R52: 643 | S52: 13 | T52: =MAX(H52-E52,0) -> 82 | U52: 0 | V52: 0 | W52: 3 | X52: 0 | Y52: 0 | Z52: =IF(Chart!$D$21=A52,1,0) -> 0 | AA52: 1000 | AB52: 1000
A53: 50 | B53: 643 | C53: 95 | D53: 262 | E53: 246 | F53: 138 | G53: 259 | H53: 44 | I53: 45 | J53: 6 | K53: 95 | L53: 548 | M53: 262 | N53: 0 | O53: 262 | P53: 0 | Q53: 524 | R53: 190 | S53: 286 | T53: =MAX(H53-E53,0) -> 0 | U53: 0 | V53: 0 | W53: 3 | X53: 0 | Y53: 0 | Z53: =IF(Chart!$D$21=A53,1,0) -> 0 | AA53: 1000 | AB53: 1000
A54: 51 | B54: 190 | C54: 286 | D54: 524 | E54: 51 | F54: 73 | G54: 66 | H54: 210 | I54: 64 | J54: 12 | K54: 127 | L54: 63 | M54: 63 | N54: 71 | O54: 134 | P54: 390 | Q54: 268 | R54: 183 | S54: 390 | T54: =MAX(H54-E54,0) -> 159 | U54: 0 | V54: 0 | W54: 3 | X54: 0 | Y54: 0 | Z54: =IF(Chart!$D$21=A54,1,0) -> 0 | AA54: 1000 | AB54: 1000
A55: 52 | B55: 183 | C55: 549 | D55: 268 | E55: 95 | F55: 65 | G55: 23 | H55: 279 | I55: 203 | J55: 67 | K55: 183 | L55: 0 | M55: 0 | N55: 131 | O55: 131 | P55: 137 | Q55: 262 | R55: 235 | S55: 137 | T55: =MAX(H55-E55,0) -> 184 | U55: 138 | V55: 44 | W55: 3 | X55: 0 | Y55: 0 | Z55: =IF(Chart!$D$21=A55,1,0) -> 0 | AA55: 1000 | AB55: 1000
A56: 53 | B56: 235 | C56: 503 | D56: 262 | E56: 78 | F56: 60 | G56: 97 | H56: 167 | I56: 102 | J56: 234 | K56: 235 | L56: 0 | M56: 0 | N56: 167 | O56: 167 | P56: 95 | Q56: 334 | R56: 303 | S56: 95 | T56: =MAX(H56-E56,0) -> 89 | U56: 42 | V56: 137 | W56: 3 | X56: 0 | Y56: 0 | Z56: =IF(Chart!$D$21=A56,1,0) -> 0 | AA56: 1000 | AB56: 1000
A57: 54 | B57: 303 | C57: 363 | D57: 334 | E57: 147 | F57: 82 | G57: 74 | H57: 259 | I57: 65 | J57: 39 | K57: 251 | L57: 52 | M57: 52 | N57: 136 | O57: 188 | P57: 146 | Q57: 376 | R57: 366 | S57: 146 | T57: =MAX(H57-E57,0) -> 112 | U57: 0 | V57: 0 | W57: 3 | X57: 0 | Y57: 0 | Z57: =IF(Chart!$D$21=A57,1,0) -> 0 | AA57: 1000 | AB57: 1000
A58: 55 | B58: 366 | C58: 258 | D58: 376 | E58: 126 | F58: 33 | G58: 207 | H58: 130 | I58: 26 | J58: 102 | K58: 254 | L58: 112 | M58: 112 | N58: 147 | O58: 259 | P58: 117 | Q58: 518 | R58: 361 | S58: 117 | T58: =MAX(H58-E58,0) -> 4 | U58: 0 | V58: 0 | W58: 3 | X58: 0 | Y58: 0 | Z58: =IF(Chart!$D$21=A58,1,0) -> 0 | AA58: 1000 | AB58: 1000
A59: 56 | B59: 361 | C59: 121 | D59: 518 | E59: 198 | F59: 45 | G59: 118 | H59: 53 | I59: 27 | J59: 41 | K59: 121 | L59: 240 | M59: 240 | N59: 90 | O59: 330 | P59: 188 | Q59: 660 | R59: 152 | S59: 188 | T59: =MAX(H59-E59,0) -> 0 | U59: 0 | V59: 0 | W59: 3 | X59: 0 | Y59: 0 | Z59: =IF(Chart!$D$21=A59,1,0) -> 0 | AA59: 1000 | AB59: 1000
A60: 57 | B60: 152 | C60: 188 | D60: 660 | E60: 63 | F60: 38 | G60: 51 | H60: 50 | I60: 21 | J60: 117 | K60: 122 | L60: 30 | M60: 30 | N60: 85 | O60: 115 | P60: 545 | Q60: 230 | R60: 159 | S60: 545 | T60: =MAX(H60-E60,0) -> 0 | U60: 0 | V60: 66 | W60: 3 | X60: 0 | Y60: 0 | Z60: =IF(Chart!$D$21=A60,1,0) -> 0 | AA60: 1000 | AB60: 1000
A61: 58 | B61: 159 | C61: 611 | D61: 230 | E61: 64 | F61: 17 | G61: 78 | H61: 301 | I61: 33 | J61: 277 | K61: 159 | L61: 0 | M61: 0 | N61: 107 | O61: 107 | P61: 123 | Q61: 214 | R61: 211 | S61: 123 | T61: =MAX(H61-E61,0) -> 237 | U61: 16 | V61: 199 | W61: 3 | X61: 0 | Y61: 0 | Z61: =IF(Chart!$D$21=A61,1,0) -> 0 | AA61: 1000 | AB61: 1000
A62: 59 | B62: 211 | C62: 575 | D62: 214 | E62: 87 | F62: 27 | G62: 97 | H62: 315 | I62: 108 | J62: 152 | K62: 211 | L62: 0 | M62: 0 | N62: 111 | O62: 111 | P62: 103 | Q62: 222 | R62: 311 | S62: 103 | T62: =MAX(H62-E62,0) -> 228 | U62: 81 | V62: 55 | W62: 3 | X62: 0 | Y62: 0 | Z62: =IF(Chart!$D$21=A62,1,0) -> 0 | AA62: 1000 | AB62: 1000
A63: 60 | B63: 311 | C63: 467 | D63: 222 | E63: 176 | F63: 81 | G63: 54 | H63: 228 | I63: 84 | J63: 155 | K63: 311 | L63: 0 | M63: 0 | N63: 149 | O63: 149 | P63: 73 | Q63: 298 | R63: 473 | S63: 73 | T63: =MAX(H63-E63,0) -> 52 | U63: 3 | V63: 101 | W63: 3 | X63: 0 | Y63: 0 | Z63: =IF(Chart!$D$21=A63,1,0) -> 0 | AA63: 1000 | AB63: 1000
A64: 61 | B64: 473 | C64: 229 | D64: 298 | E64: 181 | F64: 163 | G64: 129 | H64: 65 | I64: 27 | J64: 137 | K64: 221 | L64: 252 | M64: 252 | N64: 31 | O64: 283 | P64: 15 | Q64: 566 | R64: 411 | S64: 15 | T64: =MAX(H64-E64,0) -> 0 | U64: 0 | V64: 8 | W64: 3 | X64: 0 | Y64: 0 | Z64: =IF(Chart!$D$21=A64,1,0) -> 0 | AA64: 1000 | AB64: 1000
A65: 62 | B65: 411 | C65: 23 | D65: 566 | E65: 256 | F65: 135 | G65: 20 | H65: 12 | I65: 5 | J65: 6 | K65: 23 | L65: 388 | M65: 388 | N65: 13 | O65: 401 | P65: 165 | Q65: 802 | R65: 33 | S65: 165 | T65: =MAX(H65-E65,0) -> 0 | U65: 0 | V65: 0 | W65: 3 | X65: 0 | Y65: 0 | Z65: =IF(Chart!$D$21=A65,1,0) -> 0 | AA65: 1000 | AB65: 1000
A66: 63 | B66: 33 | C66: 165 | D66: 802 | E66: 16 | F66: 5 | G66: 12 | H66: 60 | I66: 19 | J66: 86 | K66: 33 | L66: 0 | M66: 0 | N66: 19 | O66: 19 | P66: 783 | Q66: 38 | R66: 47 | S66: 783 | T66: =MAX(H66-E66,0) -> 44 | U66: 14 | V66: 74 | W66: 3 | X66: 0 | Y66: 0 | Z66: =IF(Chart!$D$21=A66,1,0) -> 0 | AA66: 1000 | AB66: 1000
A67: 64 | B67: 47 | C67: 915 | D67: 38 | E67: 24 | F67: 9 | G67: 14 | H67: 683 | I67: 137 | J67: 95 | K67: 47 | L67: 0 | M67: 0 | N67: 25 | O67: 25 | P67: 13 | Q67: 50 | R67: 69 | S67: 13 | T67: =MAX(H67-E67,0) -> 659 | U67: 128 | V67: 81 | W67: 3 | X67: 0 | Y67: 0 | Z67: =IF(Chart!$D$21=A67,1,0) -> 0 | AA67: 1000 | AB67: 1000
A68: 65 | B68: 69 | C68: 881 | D68: 50 | E68: 37 | F68: 10 | G68: 22 | H68: 332 | I68: 292 | J68: 257 | K68: 69 | L68: 0 | M68: 0 | N68: 25 | O68: 25 | P68: 25 | Q68: 50 | R68: 113 | S68: 25 | T68: =MAX(H68-E68,0) -> 295 | U68: 282 | V68: 235 | W68: 3 | X68: 0 | Y68: 0 | Z68: =IF(Chart!$D$21=A68,1,0) -> 0 | AA68: 1000 | AB68: 1000
A69: =A68+1 -> 66 | B69: 113 | C69: 837 | D69: 50 | E69: 52 | F69: 54 | G69: 7 | H69: 576 | I69: 50 | J69: 211 | K69: 109 | L69: 4 | M69: 4 | N69: 26 | O69: 30 | P69: 20 | Q69: 60 | R69: 192 | S69: 20 | T69: =MAX(H69-E69,0) -> 524 | U69: 0 | V69: 204 | W69: 3 | X69: 0 | Y69: 0 | Z69: =IF(Chart!$D$21=A69,1,0) -> 0 | AA69: 1000 | AB69: 1000
A70: 67 | B70: 192 | C70: 748 | D70: 60 | E70: 135 | F70: 39 | G70: 18 | H70: 267 | I70: 229 | J70: 252 | K70: 192 | L70: 0 | M70: 0 | N70: 35 | O70: 35 | P70: 25 | Q70: 70 | R70: 349 | S70: 25 | T70: =MAX(H70-E70,0) -> 132 | U70: 190 | V70: 234 | W70: 3 | X70: 0 | Y70: 0 | Z70: =IF(Chart!$D$21=A70,1,0) -> 0 | AA70: 1000 | AB70: 1000
A71: 68 | B71: 349 | C71: 581 | D71: 70 | E71: 236 | F71: 13 | G71: 100 | H71: 316 | I71: 165 | J71: 100 | K71: 349 | L71: 0 | M71: 0 | N71: 37 | O71: 37 | P71: 33 | Q71: 74 | R71: 661 | S71: 33 | T71: =MAX(H71-E71,0) -> 80 | U71: 152 | V71: 0 | W71: 3 | X71: 0 | Y71: 0 | Z71: =IF(Chart!$D$21=A71,1,0) -> 0 | AA71: 1000 | AB71: 1000
A72: 69 | B72: 661 | C72: 265 | D72: 74 | E72: 266 | F72: 77 | G72: 318 | H72: 69 | I72: 104 | J72: 92 | K72: 238 | L72: 423 | M72: 74 | N72: 0 | O72: 74 | P72: 0 | Q72: 148 | R72: 476 | S72: 349 | T72: =MAX(H72-E72,0) -> 0 | U72: 27 | V72: 0 | W72: 3 | X72: 0 | Y72: 0 | Z72: =IF(Chart!$D$21=A72,1,0) -> 0 | AA72: 1000 | AB72: 1000
A73: 70 | B73: 476 | C73: 376 | D73: 148 | E73: 312 | F73: 93 | G73: 71 | H73: 252 | I73: 111 | J73: 13 | K73: 358 | L73: 118 | M73: 118 | N73: 20 | O73: 138 | P73: 10 | Q73: 276 | R73: 696 | S73: 10 | T73: =MAX(H73-E73,0) -> 0 | U73: 18 | V73: 0 | W73: 3 | X73: 0 | Y73: 0 | Z73: =IF(Chart!$D$21=A73,1,0) -> 0 | AA73: 1000 | AB73: 1000
A74: 71 | B74: 696 | C74: 28 | D74: 276 | E74: 467 | F74: 49 | G74: 180 | H74: 18 | I74: 8 | J74: 2 | K74: 28 | L74: 668 | M74: 276 | N74: 0 | O74: 276 | P74: 0 | Q74: 552 | R74: 56 | S74: 392 | T74: =MAX(H74-E74,0) -> 0 | U74: 0 | V74: 0 | W74: 3 | X74: 0 | Y74: 0 | Z74: =IF(Chart!$D$21=A74,1,0) -> 0 | AA74: 1000 | AB74: 1000
A75: 72 | B75: 56 | C75: 392 | D75: 552 | E75: 27 | F75: 17 | G75: 12 | H75: 159 | I75: 59 | J75: 174 | K75: 56 | L75: 0 | M75: 0 | N75: 33 | O75: 33 | P75: 519 | Q75: 66 | R75: 79 | S75: 519 | T75: =MAX(H75-E75,0) -> 132 | U75: 42 | V75: 162 | W75: 3 | X75: 0 | Y75: 0 | Z75: =IF(Chart!$D$21=A75,1,0) -> 0 | AA75: 1000 | AB75: 1000
A76: 73 | B76: 79 | C76: 855 | D76: 66 | E76: 20 | F76: 46 | G76: 13 | H76: 557 | I76: 146 | J76: 152 | K76: 79 | L76: 0 | M76: 0 | N76: 49 | O76: 49 | P76: 17 | Q76: 98 | R76: 109 | S76: 17 | T76: =MAX(H76-E76,0) -> 537 | U76: 100 | V76: 139 | W76: 3 | X76: 0 | Y76: 0 | Z76: =IF(Chart!$D$21=A76,1,0) -> 0 | AA76: 1000 | AB76: 1000
A77: 74 | B77: 109 | C77: 793 | D77: 98 | E77: 51 | F77: 25 | G77: 33 | H77: 203 | I77: 393 | J77: 197 | K77: 109 | L77: 0 | M77: 0 | N77: 71 | O77: 71 | P77: 27 | Q77: 142 | R77: 147 | S77: 27 | T77: =MAX(H77-E77,0) -> 152 | U77: 368 | V77: 164 | W77: 3 | X77: 0 | Y77: 0 | Z77: =IF(Chart!$D$21=A77,1,0) -> 0 | AA77: 1000 | AB77: 1000
A78: 75 | B78: 147 | C78: 711 | D78: 142 | E78: 61 | F78: 61 | G78: 25 | H78: 358 | I78: 66 | J78: 287 | K78: 147 | L78: 0 | M78: 0 | N78: 82 | O78: 82 | P78: 60 | Q78: 164 | R78: 212 | S78: 60 | T78: =MAX(H78-E78,0) -> 297 | U78: 5 | V78: 262 | W78: 3 | X78: 0 | Y78: 0 | Z78: =IF(Chart!$D$21=A78,1,0) -> 0 | AA78: 1000 | AB78: 1000
A79: 76 | B79: 212 | C79: 624 | D79: 164 | E79: 132 | F79: 23 | G79: 57 | H79: 230 | I79: 191 | J79: 203 | K79: 212 | L79: 0 | M79: 0 | N79: 117 | O79: 117 | P79: 47 | Q79: 234 | R79: 307 | S79: 47 | T79: =MAX(H79-E79,0) -> 98 | U79: 168 | V79: 146 | W79: 3 | X79: 0 | Y79: 0 | Z79: =IF(Chart!$D$21=A79,1,0) -> 0 | AA79: 1000 | AB79: 1000
A80: 77 | B80: 307 | C80: 459 | D80: 234 | E80: 147 | F80: 88 | G80: 72 | H80: 278 | I80: 132 | J80: 49 | K80: 284 | L80: 23 | M80: 23 | N80: 114 | O80: 137 | P80: 97 | Q80: 274 | R80: 454 | S80: 97 | T80: =MAX(H80-E80,0) -> 131 | U80: 44 | V80: 0 | W80: 3 | X80: 0 | Y80: 0 | Z80: =IF(Chart!$D$21=A80,1,0) -> 0 | AA80: 1000 | AB80: 1000
A81: 78 | B81: 454 | C81: 272 | D81: 274 | E81: 292 | F81: 36 | G81: 126 | H81: 197 | I81: 58 | J81: 17 | K81: 250 | L81: 204 | M81: 204 | N81: 38 | O81: 242 | P81: 32 | Q81: 484 | R81: 462 | S81: 32 | T81: =MAX(H81-E81,0) -> 0 | U81: 22 | V81: 0 | W81: 3 | X81: 0 | Y81: 0 | Z81: =IF(Chart!$D$21=A81,1,0) -> 0 | AA81: 1000 | AB81: 1000
A82: 79 | B82: 462 | C82: 54 | D82: 484 | E82: 151 | F82: 120 | G82: 191 | H82: 36 | I82: 8 | J82: 10 | K82: 54 | L82: 408 | M82: 408 | N82: 39 | O82: 447 | P82: 37 | Q82: 894 | R82: 69 | S82: 37 | T82: =MAX(H82-E82,0) -> 0 | U82: 0 | V82: 0 | W82: 3 | X82: 0 | Y82: 0 | Z82: =IF(Chart!$D$21=A82,1,0) -> 0 | AA82: 1000 | AB82: 1000
A83: 80 | B83: 69 | C83: 37 | D83: 894 | E83: 40 | F83: 17 | G83: 12 | H83: 26 | I83: 3 | J83: 8 | K83: 37 | L83: 32 | M83: 32 | N83: 21 | O83: 53 | P83: 841 | Q83: 106 | R83: 53 | S83: 841 | T83: =MAX(H83-E83,0) -> 0 | U83: 0 | V83: 0 | W83: 3 | X83: 0 | Y83: 0 | Z83: =IF(Chart!$D$21=A83,1,0) -> 0 | AA83: 1000 | AB83: 1000
A84: 81 | B84: 53 | C84: 841 | D84: 106 | E84: 33 | F84: 16 | G84: 4 | H84: 381 | I84: 341 | J84: 119 | K84: 53 | L84: 0 | M84: 0 | N84: 39 | O84: 39 | P84: 67 | Q84: 78 | R84: 67 | S84: 67 | T84: =MAX(H84-E84,0) -> 348 | U84: 325 | V84: 115 | W84: 3 | X84: 0 | Y84: 0 | Z84: =IF(Chart!$D$21=A84,1,0) -> 0 | AA84: 1000 | AB84: 1000
A85: 82 | B85: 67 | C85: 855 | D85: 78 | E85: 46 | F85: 18 | G85: 3 | H85: 611 | I85: 142 | J85: 102 | K85: 67 | L85: 0 | M85: 0 | N85: 45 | O85: 45 | P85: 33 | Q85: 90 | R85: 89 | S85: 33 | T85: =MAX(H85-E85,0) -> 565 | U85: 124 | V85: 99 | W85: 3 | X85: 0 | Y85: 0 | Z85: =IF(Chart!$D$21=A85,1,0) -> 0 | AA85: 1000 | AB85: 1000
A86: 83 | B86: 89 | C86: 821 | D86: 90 | E86: 57 | F86: 8 | G86: 24 | H86: 536 | I86: 71 | J86: 214 | K86: 89 | L86: 0 | M86: 0 | N86: 46 | O86: 46 | P86: 44 | Q86: 92 | R86: 132 | S86: 44 | T86: =MAX(H86-E86,0) -> 479 | U86: 63 | V86: 190 | W86: 3 | X86: 0 | Y86: 0 | Z86: =IF(Chart!$D$21=A86,1,0) -> 0 | AA86: 1000 | AB86: 1000
A87: 84 | B87: 132 | C87: 776 | D87: 92 | E87: 46 | F87: 49 | G87: 37 | H87: 354 | I87: 269 | J87: 153 | K87: 132 | L87: 0 | M87: 0 | N87: 64 | O87: 64 | P87: 28 | Q87: 128 | R87: 200 | S87: 28 | T87: =MAX(H87-E87,0) -> 308 | U87: 220 | V87: 116 | W87: 3 | X87: 0 | Y87: 0 | Z87: =IF(Chart!$D$21=A87,1,0) -> 0 | AA87: 1000 | AB87: 1000
A88: 85 | B88: 200 | C88: 672 | D88: 128 | E88: 134 | F88: 26 | G88: 40 | H88: 398 | I88: 134 | J88: 140 | K88: 200 | L88: 0 | M88: 0 | N88: 86 | O88: 86 | P88: 42 | Q88: 172 | R88: 314 | S88: 42 | T88: =MAX(H88-E88,0) -> 264 | U88: 108 | V88: 100 | W88: 3 | X88: 0 | Y88: 0 | Z88: =IF(Chart!$D$21=A88,1,0) -> 0 | AA88: 1000 | AB88: 1000
A89: 86 | B89: 314 | C89: 514 | D89: 172 | E89: 146 | F89: 106 | G89: 62 | H89: 213 | I89: 135 | J89: 166 | K89: 314 | L89: 0 | M89: 0 | N89: 125 | O89: 125 | P89: 47 | Q89: 250 | R89: 503 | S89: 47 | T89: =MAX(H89-E89,0) -> 67 | U89: 29 | V89: 104 | W89: 3 | X89: 0 | Y89: 0 | Z89: =IF(Chart!$D$21=A89,1,0) -> 0 | AA89: 1000 | AB89: 1000
A90: 87 | B90: 503 | C90: 247 | D90: 250 | E90: 299 | F90: 171 | G90: 33 | H90: 79 | I90: 120 | J90: 48 | K90: 232 | L90: 271 | M90: 250 | N90: 0 | O90: 250 | P90: 0 | Q90: 500 | R90: 464 | S90: 21 | T90: =MAX(H90-E90,0) -> 0 | U90: 0 | V90: 15 | W90: 3 | X90: 0 | Y90: 0 | Z90: =IF(Chart!$D$21=A90,1,0) -> 0 | AA90: 1000 | AB90: 1000
A91: 88 | B91: 464 | C91: 36 | D91: 500 | E91: 207 | F91: 29 | G91: 228 | H91: 10 | I91: 14 | J91: 12 | K91: 36 | L91: 428 | M91: 428 | N91: 23 | O91: 451 | P91: 49 | Q91: 902 | R91: 49 | S91: 49 | T91: =MAX(H91-E91,0) -> 0 | U91: 0 | V91: 0 | W91: 3 | X91: 0 | Y91: 0 | Z91: =IF(Chart!$D$21=A91,1,0) -> 0 | AA91: 1000 | AB91: 1000
A92: 89 | B92: 49 | C92: 49 | D92: 902 | E92: 20 | F92: 18 | G92: 11 | H92: 26 | I92: 10 | J92: 13 | K92: 41 | L92: 8 | M92: 8 | N92: 26 | O92: 34 | P92: 868 | Q92: 68 | R92: 56 | S92: 868 | T92: =MAX(H92-E92,0) -> 6 | U92: 0 | V92: 2 | W92: 3 | X92: 0 | Y92: 0 | Z92: =IF(Chart!$D$21=A92,1,0) -> 0 | AA92: 1000 | AB92: 1000
A93: 90 | B93: 56 | C93: 876 | D93: 68 | E93: 14 | F93: 10 | G93: 32 | H93: 419 | I93: 330 | J93: 127 | K93: 56 | L93: 0 | M93: 0 | N93: 35 | O93: 35 | P93: 33 | Q93: 70 | R93: 77 | S93: 33 | T93: =MAX(H93-E93,0) -> 405 | U93: 320 | V93: 95 | W93: 3 | X93: 0 | Y93: 0 | Z93: =IF(Chart!$D$21=A93,1,0) -> 0 | AA93: 1000 | AB93: 1000
A94: 91 | B94: 77 | C94: 853 | D94: 70 | E94: 26 | F94: 25 | G94: 26 | H94: 514 | I94: 210 | J94: 129 | K94: 77 | L94: 0 | M94: 0 | N94: 45 | O94: 45 | P94: 25 | Q94: 90 | R94: 109 | S94: 25 | T94: =MAX(H94-E94,0) -> 488 | U94: 185 | V94: 103 | W94: 3 | X94: 0 | Y94: 0 | Z94: =IF(Chart!$D$21=A94,1,0) -> 0 | AA94: 1000 | AB94: 1000
A95: 92 | B95: 109 | C95: 801 | D95: 90 | E95: 49 | F95: 48 | G95: 12 | H95: 480 | I95: 231 | J95: 90 | K95: 109 | L95: 0 | M95: 0 | N95: 65 | O95: 65 | P95: 25 | Q95: 130 | R95: 153 | S95: 25 | T95: =MAX(H95-E95,0) -> 431 | U95: 183 | V95: 78 | W95: 3 | X95: 0 | Y95: 0 | Z95: =IF(Chart!$D$21=A95,1,0) -> 0 | AA95: 1000 | AB95: 1000
A96: 93 | B96: 153 | C96: 717 | D96: 130 | E96: 46 | F96: 70 | G96: 37 | H96: 473 | I96: 177 | J96: 67 | K96: 153 | L96: 0 | M96: 0 | N96: 81 | O96: 81 | P96: 49 | Q96: 162 | R96: 225 | S96: 49 | T96: =MAX(H96-E96,0) -> 427 | U96: 107 | V96: 30 | W96: 3 | X96: 0 | Y96: 0 | Z96: =IF(Chart!$D$21=A96,1,0) -> 0 | AA96: 1000 | AB96: 1000
A97: 94 | B97: 225 | C97: 613 | D97: 162 | E97: 75 | F97: 54 | G97: 96 | H97: 406 | I97: 145 | J97: 62 | K97: 191 | L97: 34 | M97: 34 | N97: 77 | O97: 111 | P97: 51 | Q97: 222 | R97: 305 | S97: 51 | T97: =MAX(H97-E97,0) -> 331 | U97: 91 | V97: 0 | W97: 3 | X97: 0 | Y97: 0 | Z97: =IF(Chart!$D$21=A97,1,0) -> 0 | AA97: 1000 | AB97: 1000
A98: 95 | B98: 305 | C98: 473 | D98: 222 | E98: 124 | F98: 115 | G98: 66 | H98: 157 | I98: 119 | J98: 197 | K98: 305 | L98: 0 | M98: 0 | N98: 113 | O98: 113 | P98: 109 | Q98: 226 | R98: 497 | S98: 109 | T98: =MAX(H98-E98,0) -> 33 | U98: 4 | V98: 131 | W98: 3 | X98: 0 | Y98: 0 | Z98: =IF(Chart!$D$21=A98,1,0) -> 0 | AA98: 1000 | AB98: 1000
A99: 96 | B99: 497 | C99: 277 | D99: 226 | E99: 314 | F99: 59 | G99: 124 | H99: 103 | I99: 128 | J99: 46 | K99: 208 | L99: 289 | M99: 226 | N99: 0 | O99: 226 | P99: 0 | Q99: 452 | R99: 416 | S99: 63 | T99: =MAX(H99-E99,0) -> 0 | U99: 69 | V99: 0 | W99: 3 | X99: 0 | Y99: 0 | Z99: =IF(Chart!$D$21=A99,1,0) -> 0 | AA99: 1000 | AB99: 1000
A100: 97 | B100: 416 | C100: 132 | D100: 452 | E100: 310 | F100: 44 | G100: 62 | H100: 41 | I100: 76 | J100: 15 | K100: 100 | L100: 316 | M100: 316 | N100: 50 | O100: 366 | P100: 86 | Q100: 732 | R100: 150 | S100: 86 | T100: =MAX(H100-E100,0) -> 0 | U100: 32 | V100: 0 | W100: 3 | X100: 0 | Y100: 0 | Z100: =IF(Chart!$D$21=A100,1,0) -> 0 | AA100: 1000 | AB100: 1000
A101: 98 | B101: 150 | C101: 118 | D101: 732 | E101: 95 | F101: 13 | G101: 42 | H101: 42 | I101: 24 | J101: 52 | K101: 97 | L101: 53 | M101: 53 | N101: 65 | O101: 118 | P101: 614 | Q101: 236 | R101: 129 | S101: 614 | T101: =MAX(H101-E101,0) -> 0 | U101: 11 | V101: 10 | W101: 3 | X101: 0 | Y101: 0 | Z101: =IF(Chart!$D$21=A101,1,0) -> 0 | AA101: 1000 | AB101: 1000
A102: 99 | B102: =R101 -> 129 | C102: =SUM(S101:V101)-Z102 -> 635 | D102: =Q101+Z102 -> 236 | E102: =INT(RANDBETWEEN(B102*0.25,B102*0.75)) -> 47 | F102: =INT(RANDBETWEEN((B102-E102)*0.1,(B102-E102)*0.9)) -> 39 | G102: =B102-E102-F102 -> 43 | H102: =INT(RANDBETWEEN(C102*0.25,C102*0.75))*(1-X102) -> 319 | I102: =INT(RANDBETWEEN((C102-H102)*0.1,(C102-H102)*0.9))*(1-Y102) -> 86 | J102: =C102-H102-I102 -> 230 | K102: =MIN(E102,H102)+MIN(F102,I102)+MIN(G102,J102) -> 129 | L102: =B102-K102 -> 0 | M102: =MIN(D102,L102) -> 0 | N102: =RANDBETWEEN(MIN(D102-M102,K102)*0.5,MIN(D102-M102,K102)*0.75) -> 94 | O102: =MIN(D102,N102+L102) -> 94 | P102: =MAX(D102-O102,0) -> 142 | Q102: =O102+D102-P102 -> 188 | R102: =B102+K102-L102-N102 -> 164 | S102: =L102-M102+P102 -> 142 | T102: =MAX(H102-E102,0) -> 272 | U102: =MAX(I102-F102,0) -> 47 | V102: =MAX(J102-G102,0) -> 187 | W102: 3 | X102: 0 | Y102: 0 | Z102: =IF(Chart!$D$21=A102,1,0) -> 0
A103: 100 | B103: 164 | C103: 648 | D103: 188 | E103: 98 | F103: 15 | G103: 51 | H103: 477 | I103: 34 | J103: 137 | K103: 164 | L103: 0 | M103: 0 | N103: 96 | O103: 96 | P103: 92 | Q103: 192 | R103: 232 | S103: 92 | T103: 379 | U103: 19 | V103: 86 | W103: 3 | X103: 0 | Y103: 0 | Z103: =IF(Chart!$D$21=A103,1,0) -> 0 | AA103: 1000 | AB103: 1000
